[Event "Caplin Hastings Masters 2023-24"]
[Site "Hastings"]
[Date "2024.01.04"]
[Round "8.20"]
[White "Lux, Hugo de Melo"]
[Black "Thompson, Ian D"]
[Result "1-0"]
[ECO "C11"]
[WhiteElo "2311"]
[BlackElo "2011"]
[Annotator "RC"]
[PlyCount "113"]
[EventDate "2023.12.18"]
[EventType "swiss"]
[EventCountry "ENG"]
[SourceTitle "playchess.com"]
[Source "ChessBase"]
[SourceQuality "1"]
[TimeControl "40/6000+30:3000+30"]

1. e4 {[%emt 0:03:17]} e6 {[%emt 0:00:07]} 2. d4 {[%emt 0:00:06]} d5 {[%emt 0:00:05]} 3. Nc3 {[%emt 0:00:05]} Nf6 {[%emt 0:00:18]} 4. e5 {[%emt 0:00:26]} Nfd7 {[%emt 0:00:10]} 5. f4 {[%emt 0:00:04]} c5 {[%emt 0:00:08]} 6. Nf3 {[%emt 0:00:23]} Nc6 {[%emt 0:00:14]} 7. Be3 {[%emt 0:00:04]} Be7 {[%emt 0:01:04]} 8. Qd2 {[%emt 0:00:17]} O-O {[%emt 0:00:25]} 9. dxc5 {[%emt 0:00:10]} Bxc5 {[%emt 0:02:09]} 10. O-O-O {[%emt 0:00:47]} Qa5 {[%emt 0:01:46]} 11. a3 {[%emt 0:01:36]} Rb8 {[%emt 0:18:22]} 12. Bxc5 {[%emt 0:00:08]} Nxc5 {[%emt 0:01:38]} 13. Qe3 {[%emt 0:00:07]} Qb6 {[%emt 0:17:24]} 14. Kb1 {[%emt 0:00:38]} Na4 {[%emt 0:06:33]} 15. Qxb6 {[%emt 0:00:33]} Nxb6 {[%emt 0:00:03]} 16. Nb5 {[%emt 0:05:22]} Bd7 {[%emt 0:03:35]} 17. h4 {[%emt 0:12:54]} a6 {[%emt 0:10:19]} 18. Nbd4 {[%emt 0:04:08]} Na4 {[%emt 0:02:08]} 19. Rh3 {[%emt 0:04:32]} Nc5 {[%emt 0:03:03]} 20. Bd3 {[%emt 0:01:10]} f5 {[%emt 0:04:51]} 21. Rhh1 {[%emt 0:27:33]} Ne4 {[%emt 0:03:53]} 22. Rhf1 {[%emt 0:00:28]} b5 {[%emt 0:04:40]} 23. Nxc6 {[%emt 0:00:26]} Bxc6 {[%emt 0:00:02]} 24. Nd4 {[%emt 0:00:09]} Bd7 {[%emt 0:01:17]} 25. Bxe4 {[%emt 0:02:02]} fxe4 {[%emt 0:00:16]} 26. b4 {[%emt 0:02:22]} a5 {[%emt 0:04:48]} 27. Nb3 {[%emt 0:16:39]} axb4 {[%emt 0:01:44]} 28. axb4 {[%emt 0:00:27]} Rfe8 {[%emt 0:05:52]} 29. Kb2 {[%emt 0:01:15]} Re7 {[%emt 0:01:10]} 30. Kc3 {[%emt 0:04:28]} Be8 {[%emt 0:01:34]} 31. Ra1 {[%emt 0:04:30]} Bh5 {[%emt 0:00:29]} 32. Kd4 {[%emt 0:04:20]} Bg4 {[%emt 0:01:56]} 33. Nc5 {[%emt 0:00:22]} h6 {[%emt 0:00:35]} 34. Ke3 {[%emt 0:08:00]} g5 {[%emt 0:03:21]} 35. fxg5 {[%emt 0:05:18]} hxg5 {[%emt 0:00:02]} 36. Rf6 {[%emt 0:01:35]} gxh4 {[%emt 0:01:07]} 37. Rh1 {[%emt 0:00:13]} Bf5 {[%emt 0:04:40]} 38. Rxh4 {[%emt 0:00:23]} Rg7 {[%emt 0:00:16]} 39. Rfh6 {[%emt 0:02:07]} Kf7 {[%emt 0:00:19]} 40. Rf6+ {[%emt 0:00:17]} Ke7 {[%emt 0:01:01]} 41. Rhh6 {[%emt 0:13:41]} Rxg2 {[%emt 0:26:23]} 42. Nxe6 {[%emt 0:05:42]} Bxe6 {[%emt 0:00:31]} 43. Rh7+ {[%emt 0:01:07]} Ke8 {[%emt 0:00:36]} 44. Rxe6+ {[%emt 0:00:40]} Kd8 {[%emt 0:00:43]} 45. Rh8+ {[%emt 0:06:35]} Kd7 {[%emt 0:00:38]} 46. Rd6+ {[%emt 0:00:05]} Kc7 {[%emt 0:00:05]} 47. Rh7+ {[%emt 0:00:04]} Kc8 {[%emt 0:00:09]} 48. e6 {[%emt 0:13:26]} d4+ {[%emt 0:01:46]} 49. Kxe4 {[%emt 0:00:46]} Rb7 {[%emt 0:01:31]} 50. Rh8+ {[%emt 0:03:41]} Kc7 {[%emt 0:00:02]} 51. Rd7+ {[%emt 0:00:15]} Kb6 {[%emt 0:00:57]} 52. Rxb7+ {[%emt 0:00:19]} Kxb7 {[%emt 0:00:02]} 53. Kd5 {[%emt 0:00:28]} Re2 {[%emt 0:00:28]} 54. Kd6 {[%emt 0:00:09]} d3 {[%emt 0:00:37]} 55. cxd3 {[%emt 0:00:10]} Rd2 {[%emt 0:00:45]} 56. e7 {[%emt 0:00:13]} Rxd3+ {[%emt 0:00:05]} 57. Kc5 {[%emt 0:00:05]} 1-0

[Event "Caplin Hastings Masters 2023-24"]
[Site "Hastings"]
[Date "2024.01.04"]
[Round "8.21"]
[White "Bozinakis, Pavlos"]
[Black "Pert, Max"]
[Result "1/2-1/2"]
[ECO "B13"]
[WhiteElo "2274"]
[BlackElo "1950"]
[Annotator "RC"]
[PlyCount "155"]
[EventDate "2023.12.18"]
[EventType "swiss"]
[EventCountry "ENG"]
[SourceTitle "playchess.com"]
[Source "ChessBase"]
[SourceQuality "1"]
[TimeControl "40/6000+30:3000+30"]

1. e4 {[%emt 0:00:10]} c6 {[%emt 0:00:24]} 2. d4 {[%emt 0:01:01]} d5 {[%emt 0:01:01]} 3. exd5 {[%emt 0:01:07]} cxd5 {[%emt 0:00:47]} 4. Nf3 {[%emt 0:00:58]} Nc6 {[%emt 0:01:52]} 5. c4 {[%emt 0:01:35]} Nf6 {[%emt 0:03:02]} 6. Nc3 {[%emt 0:01:20]} Bg4 {[%emt 0:08:38]} 7. Be3 {[%emt 0:01:39]} e6 {[%emt 0:03:11]} 8. c5 {[%emt 0:04:37]} Be7 {[%emt 0:03:53]} 9. h3 {[%emt 0:07:12]} Bh5 {[%emt 0:02:51]} 10. Be2 {[%emt 0:09:33]} O-O {[%emt 0:04:09]} 11. O-O {[%emt 0:00:42]} Ne4 {[%emt 0:05:47]} 12. Qb3 {[%emt 0:06:10]} Qb8 {[%emt 0:16:13]} 13. Rfe1 {[%emt 0:07:28]} Bf6 {[%emt 0:08:06]} 14. Rad1 {[%emt 0:03:55]} Rd8 {[%emt 0:03:38]} 15. Qc2 {[%emt 0:06:45]} Bg6 {[%emt 0:04:12]} 16. Qa4 {[%emt 0:02:50]} a6 {[%emt 0:10:11]} 17. Rc1 {[%emt 0:07:53]} Qc7 {[%emt 0:10:43]} 18. Red1 {[%emt 0:04:55]} Ne7 {[%emt 0:04:49]} 19. Qb3 {[%emt 0:04:17]} Nf5 {[%emt 0:05:05]} 20. Na4 {[%emt 0:01:00]} Nxe3 {[%emt 0:01:51]} 21. Qxe3 {[%emt 0:00:41]} Re8 {[%emt 0:03:33]} 22. Nb6 {[%emt 0:00:42]} Rad8 {[%emt 0:00:10]} 23. b4 {[%emt 0:01:26]} Bh5 {[%emt 0:02:54]} 24. Rb1 {[%emt 0:04:59]} Bxf3 {[%emt 0:00:55]} 25. Bxf3 {[%emt 0:01:07]} Nd6 {[%emt 0:00:52]} 26. Qf4 {[%emt 0:02:16]} Nb5 {[%emt 0:00:51]} 27. Qxc7 {[%emt 0:00:26]} Nxc7 {[%emt 0:00:04]} 28. a4 {[%emt 0:00:55]} Na8 {[%emt 0:00:58]} 29. Nxa8 {[%emt 0:04:01]} Rxa8 {[%emt 0:00:05]} 30. Kf1 {[%emt 0:01:00]} g6 {[%emt 0:01:13]} 31. Ke2 {[%emt 0:00:56]} Reb8 {[%emt 0:01:24]} 32. a5 {[%emt 0:01:02]} Bd8 {[%emt 0:01:04]} 33. Kd3 {[%emt 0:01:08]} Kg7 {[%emt 0:00:45]} 34. g3 {[%emt 0:00:28]} Rc8 {[%emt 0:01:00]} 35. Bg2 {[%emt 0:01:11]} Kf6 {[%emt 0:00:24]} 36. f4 {[%emt 0:00:25]} Bc7 {[%emt 0:00:18]} 37. Rf1 {[%emt 0:00:20]} Kg7 {[%emt 0:00:36]} 38. Rbe1 {[%emt 0:00:31]} Re8 {[%emt 0:00:29]} 39. g4 {[%emt 0:00:53]} f5 {[%emt 0:00:29]} 40. Rf3 {[%emt 0:06:50]} Kf7 {[%emt 0:00:42]} 41. Bf1 {[%emt 0:53:34]} Kf6 {[%emt 0:02:20]} 42. Be2 {[%emt 0:00:00]} Rg8 {[%emt 0:02:14]} 43. Bd1 {[%emt 0:00:00]} Rae8 {[%emt 0:03:07]} 44. Ba4 {[%emt 0:00:00]} Re7 {[%emt 0:00:26]} 45. Ke3 {[%emt 0:00:00]} h6 {[%emt 0:08:22]} 46. Rg1 {[%emt 0:00:00]} g5 {[%emt 0:02:21]} 47. fxg5+ {[%emt 0:00:00]} hxg5 {[%emt 0:00:41]} 48. gxf5 {[%emt 0:00:00]} exf5+ {[%emt 0:02:19]} 49. Kd3 {[%emt 0:00:00]} Rh8 {[%emt 0:01:54]} 50. Bb3 {[%emt 0:00:00]} Rd8 {[%emt 0:05:52]} 51. Rgf1 {[%emt 0:00:00]} f4 {[%emt 0:01:10]} 52. R1f2 {[%emt 0:00:00]} Re1 {[%emt 0:02:12]} 53. Rf1 {[%emt 0:00:00]} Re7 {[%emt 0:01:58]} 54. Rc1 {[%emt 0:00:00]} Kf5 {[%emt 0:02:18]} 55. Rg1 {[%emt 0:00:00]} Rg7 {[%emt 0:01:56]} 56. Ke2 {[%emt 0:00:00]} Re7+ {[%emt 0:02:03]} 57. Kd2 {[%emt 0:00:00]} Kf6 {[%emt 0:04:14]} 58. Bc2 {[%emt 0:00:00]} Rde8 {[%emt 0:01:29]} 59. Rg2 {[%emt 0:00:00]} Re1 {[%emt 0:01:49]} 60. Bb3 {[%emt 0:00:00]} Rb1 {[%emt 0:00:48]} 61. Kc2 {[%emt 0:04:02]} Ree1 {[%emt 0:00:33]} 62. Bxd5 {[%emt 0:00:22]} Rxb4 {[%emt 0:01:03]} 63. Kc3 {[%emt 0:00:55]} Bxa5 {[%emt 0:01:02]} 64. h4 {[%emt 0:02:35]} Rd1 {[%emt 0:05:31]} 65. hxg5+ {[%emt 0:00:24]} Kg7 {[%emt 0:00:06]} 66. Kc2 {[%emt 0:02:22]} Rdxd4 {[%emt 0:00:17]} 67. Rd3 {[%emt 0:00:38]} Rxd3 {[%emt 0:01:07]} 68. Kxd3 {[%emt 0:00:05]} Rb5 {[%emt 0:00:51]} 69. Kd4 {[%emt 0:00:54]} Bb4 {[%emt 0:00:54]} 70. c6 {[%emt 0:00:53]} bxc6 {[%emt 0:00:53]} 71. Bxc6 {[%emt 0:00:06]} Rf5 {[%emt 0:00:33]} 72. Ke4 {[%emt 0:00:53]} Rf8 {[%emt 0:00:32]} 73. Kf3 {[%emt 0:00:30]} a5 {[%emt 0:01:08]} 74. Be4 {[%emt 0:00:24]} a4 {[%emt 0:00:42]} 75. Rb2 {[%emt 0:00:17]} Rb8 {[%emt 0:00:06]} 76. Ra2 {[%emt 0:00:34]} a3 {[%emt 0:00:55]} 77. Kxf4 {[%emt 0:00:24]} Bd6+ {[%emt 0:00:27]} 78. Ke3 {[%emt 0:01:51]} 1/2-1/2

[Event "Caplin Hastings Masters 2023-24"]
[Site "Hastings"]
[Date "2024.01.04"]
[Round "8.22"]
[White "ONUOHA, Obioma"]
[Black "Sarkar, Justin"]
[Result "0-1"]
[ECO "B40"]
[WhiteElo "1995"]
[BlackElo "2272"]
[Annotator "RC"]
[PlyCount "100"]
[EventDate "2023.12.18"]
[EventType "swiss"]
[EventCountry "ENG"]
[SourceTitle "playchess.com"]
[Source "ChessBase"]
[SourceQuality "1"]
[TimeControl "40/6000+30:3000+30"]

1. e4 {[%emt 0:00:12]} c5 {[%emt 0:00:11]} 2. Nf3 {[%emt 0:00:05]} e6 {[%emt 0:01:23]} 3. d4 {[%emt 0:00:19]} cxd4 {[%emt 0:00:07]} 4. Nxd4 {[%emt 0:00:21]} Nc6 {[%emt 0:00:24]} 5. Nb3 {[%emt 0:00:06]} Nf6 {[%emt 0:00:23]} 6. Bd3 {[%emt 0:00:08]} Be7 {[%emt 0:12:56]} 7. O-O {[%emt 0:02:37]} O-O {[%emt 0:00:12]} 8. f4 {[%emt 0:00:41]} d6 {[%emt 0:00:48]} 9. Nc3 {[%emt 0:00:30]} b5 {[%emt 0:24:51]} 10. Qf3 {[%emt 0:04:03]} b4 {[%emt 0:08:11]} 11. Ne2 {[%emt 0:10:11]} a5 {[%emt 0:01:18]} 12. Be3 {[%emt 0:01:19]} e5 {[%emt 0:03:52]} 13. f5 {[%emt 0:01:58]} d5 {[%emt 0:01:11]} 14. Rad1 {[%emt 0:01:15]} a4 {[%emt 0:00:54]} 15. Nd2 {[%emt 0:00:55]} d4 {[%emt 0:11:08]} 16. Bf2 {[%emt 0:09:12]} Nd7 {[%emt 0:04:19]} 17. Qh5 {[%emt 0:02:36]} Ba6 {[%emt 0:02:50]} 18. Nf3 {[%emt 0:01:56]} b3 {[%emt 0:01:46]} 19. axb3 {[%emt 0:01:09]} axb3 {[%emt 0:00:52]} 20. Bxa6 {[%emt 0:03:28]} bxc2 {[%emt 0:07:33]} 21. Bb7 {[%emt 0:22:16]} cxd1=B {[%emt 0:00:26]} 22. Rxd1 {[%emt 0:01:14]} Qb6 {[%emt 0:02:05]} 23. Bxa8 {[%emt 0:04:28]} Rxa8 {[%emt 0:03:33]} 24. Nc3 {[%emt 0:12:38]} Nf6 {[%emt 0:00:09]} 25. Nd5 {[%emt 0:00:28]} Nxd5 {[%emt 0:08:22]} 26. exd5 {[%emt 0:00:13]} Qb3 {[%emt 0:00:04]} 27. Rc1 {[%emt 0:05:59]} Qxd5 {[%emt 0:00:40]} 28. h4 {[%emt 0:00:52]} e4 {[%emt 0:04:55]} 29. Ng5 {[%emt 0:04:50]} h6 {[%emt 0:01:09]} 30. Nxf7 {[%emt 0:01:25]} Qxf7 {[%emt 0:00:12]} 31. Qxf7+ {[%emt 0:00:08]} Kxf7 {[%emt 0:00:04]} 32. Rxc6 {[%emt 0:00:05]} Ra1+ {[%emt 0:00:21]} 33. Kh2 {[%emt 0:00:29]} e3 {[%emt 0:00:07]} 34. Bxe3 {[%emt 0:06:29]} dxe3 {[%emt 0:00:08]} 35. Re6 {[%emt 0:00:21]} Bd6+ {[%emt 0:08:51]} 36. Kh3 {[%emt 0:08:00]} Rh1+ {[%emt 0:00:39]} 37. Kg4 {[%emt 0:00:23]} h5+ {[%emt 0:00:14]} 38. Kxh5 {[%emt 0:02:22]} Be7 {[%emt 0:01:42]} 39. Kg4 {[%emt 0:00:53]} Rxh4+ {[%emt 0:00:14]} 40. Kg3 {[%emt 0:00:58]} Rb4 {[%emt 0:00:53]} 41. Rxe3 {[%emt 0:50:16]} Rxb2 {[%emt 0:50:14]} 42. Kf3 {[%emt 0:01:00]} Bc5 {[%emt 0:00:47]} 43. Re5 {[%emt 0:01:31]} Rf2+ {[%emt 0:00:24]} 44. Kg4 {[%emt 0:00:42]} Rxg2+ {[%emt 0:00:25]} 45. Kf3 {[%emt 0:00:07]} Rf2+ {[%emt 0:00:15]} 46. Kg4 {[%emt 0:00:05]} Bd6 {[%emt 0:00:21]} 47. Re6 {[%emt 0:00:29]} Rf4+ {[%emt 0:00:19]} 48. Kg5 {[%emt 0:00:05]} Rd4 {[%emt 0:00:05]} 49. Re1 {[%emt 0:01:23]} Be7+ {[%emt 0:00:12]} 50. f6 {[%emt 0:00:04]} Bxf6+ {[%emt 0:00:07]} 0-1

[Event "Caplin Hastings Masters 2023-24"]
[Site "Hastings"]
[Date "2024.01.04"]
[Round "8.23"]
[White "Nielsen, Andre"]
[Black "Larkin, Benjamin"]
[Result "1-0"]
[ECO "B96"]
[WhiteElo "2239"]
[BlackElo "1814"]
[Annotator "RC"]
[PlyCount "83"]
[EventDate "2023.12.18"]
[EventType "swiss"]
[EventCountry "ENG"]
[SourceTitle "playchess.com"]
[Source "ChessBase"]
[SourceQuality "1"]
[TimeControl "40/6000+30:3000+30"]

1. e4 {[%emt 0:00:05]} c5 {[%emt 0:00:13]} 2. Nf3 {[%emt 0:00:15]} d6 {[%emt 0:00:09]} 3. d4 {[%emt 0:00:19]} cxd4 {[%emt 0:00:06]} 4. Nxd4 {[%emt 0:00:09]} Nf6 {[%emt 0:00:05]} 5. Nc3 {[%emt 0:00:12]} a6 {[%emt 0:00:05]} 6. Bg5 {[%emt 0:10:59]} e6 {[%emt 0:00:09]} 7. f4 {[%emt 0:00:11]} h6 {[%emt 0:00:21]} 8. Bh4 {[%emt 0:00:21]} Qb6 {[%emt 0:00:06]} 9. a3 {[%emt 0:00:40]} Nbd7 {[%emt 0:00:53]} 10. Bc4 {[%emt 0:05:23]} e5 {[%emt 0:00:14]} 11. fxe5 {[%emt 0:00:52]} dxe5 {[%emt 0:00:15]} 12. Nb3 {[%emt 0:00:51]} Be7 {[%emt 0:00:23]} 13. Qe2 {[%emt 0:11:34]} Qc7 {[%emt 0:01:16]} 14. O-O-O {[%emt 0:03:26]} b5 {[%emt 0:00:06]} 15. Bd5 {[%emt 0:01:06]} Rb8 {[%emt 0:00:44]} 16. Be1 {[%emt 0:10:20]} b4 {[%emt 0:04:28]} 17. axb4 {[%emt 0:00:35]} Rxb4 {[%emt 0:01:03]} 18. h3 {[%emt 0:07:13]} Rb8 {[%emt 0:03:30]} 19. g4 {[%emt 0:05:33]} a5 {[%emt 0:04:40]} 20. Nb5 {[%emt 0:03:59]} Qb6 {[%emt 0:01:08]} 21. c4 {[%emt 0:00:09]} Nxd5 {[%emt 0:02:51]} 22. Rxd5 {[%emt 0:06:17]} a4 {[%emt 0:04:33]} 23. Bf2 {[%emt 0:08:49]} Qg6 {[%emt 0:02:23]} 24. Nc5 {[%emt 0:03:41]} Bxc5 {[%emt 0:12:41]} 25. Bxc5 {[%emt 0:00:33]} Nxc5 {[%emt 0:00:32]} 26. Nc7+ {[%emt 0:02:30]} Ke7 {[%emt 0:02:38]} 27. Rxc5 {[%emt 0:00:10]} Rd8 {[%emt 0:07:51]} 28. Rxe5+ {[%emt 0:02:37]} Kf8 {[%emt 0:00:02]} 29. Rd1 {[%emt 0:06:29]} Bb7 {[%emt 0:02:20]} 30. Nb5 {[%emt 0:09:26]} Rbc8 {[%emt 0:04:27]} 31. Rxd8+ {[%emt 0:01:03]} Rxd8 {[%emt 0:00:11]} 32. Qe3 {[%emt 0:01:33]} Qf6 {[%emt 0:01:39]} 33. Qc5+ {[%emt 0:03:26]} Kg8 {[%emt 0:01:00]} 34. Kb1 {[%emt 0:01:22]} Qf3 {[%emt 0:32:32]} 35. Nc3 {[%emt 0:00:49]} a3 {[%emt 0:00:48]} 36. Qb5 {[%emt 0:02:26]} axb2 {[%emt 0:03:57]} 37. Re8+ {[%emt 0:01:12]} Rxe8 {[%emt 0:00:01]} 38. Qxe8+ {[%emt 0:00:08]} Kh7 {[%emt 0:00:02]} 39. Kxb2 {[%emt 0:00:50]} Qxh3 {[%emt 0:02:47]} 40. Qxf7 {[%emt 0:02:16]} Bxe4 {[%emt 0:02:07]} 41. Nxe4 {[%emt 0:03:56]} Qh2+ {[%emt 0:04:15]} 42. Ka3 {[%emt 0:02:15]} 1-0

[Event "Caplin Hastings Masters 2023-24"]
[Site "Hastings"]
[Date "2024.01.04"]
[Round "8.24"]
[White "Gibbs, Dominic V"]
[Black "Villiers, Thomas"]
[Result "0-1"]
[ECO "B22"]
[WhiteElo "1795"]
[BlackElo "2230"]
[Annotator "RC"]
[PlyCount "82"]
[EventDate "2023.12.18"]
[EventType "swiss"]
[EventCountry "ENG"]
[SourceTitle "playchess.com"]
[Source "ChessBase"]
[SourceQuality "1"]
[TimeControl "40/6000+30:3000+30"]

1. e4 {[%emt 0:00:03]} c5 {[%emt 0:00:04]} 2. c3 {[%emt 0:00:13]} Nf6 {[%emt 0:00:03]} 3. e5 {[%emt 0:00:12]} Nd5 {[%emt 0:00:02]} 4. Nf3 {[%emt 0:00:10]} Nc6 {[%emt 0:00:10]} 5. Bc4 {[%emt 0:00:14]} Nb6 {[%emt 0:00:06]} 6. Bb3 {[%emt 0:00:08]} c4 {[%emt 0:00:07]} 7. Bc2 {[%emt 0:00:06]} g6 {[%emt 0:00:06]} 8. O-O {[%emt 0:03:32]} Bg7 {[%emt 0:00:05]} 9. Re1 {[%emt 0:00:22]} O-O {[%emt 0:00:15]} 10. Na3 {[%emt 0:00:39]} d5 {[%emt 0:00:24]} 11. b3 {[%emt 0:05:02]} Bg4 {[%emt 0:00:25]} 12. bxc4 {[%emt 0:02:48]} Nxe5 {[%emt 0:03:23]} 13. c5 {[%emt 0:06:22]} Nbc4 {[%emt 0:00:04]} 14. d4 {[%emt 0:02:19]} Bxf3 {[%emt 0:01:35]} 15. gxf3 {[%emt 0:00:49]} Nxa3 {[%emt 0:00:06]} 16. Bxa3 {[%emt 0:01:11]} Nc4 {[%emt 0:00:04]} 17. Bc1 {[%emt 0:01:13]} e5 {[%emt 0:00:20]} 18. Rb1 {[%emt 0:05:34]} Qa5 {[%emt 0:01:47]} 19. Rb3 {[%emt 0:19:39]} exd4 {[%emt 0:01:53]} 20. cxd4 {[%emt 0:00:51]} Bxd4 {[%emt 0:00:16]} 21. Rd3 {[%emt 0:13:15]} Rfe8 {[%emt 0:03:18]} 22. Rf1 {[%emt 0:01:14]} Bxc5 {[%emt 0:01:05]} 23. Bb3 {[%emt 0:03:25]} Rad8 {[%emt 0:02:24]} 24. Kg2 {[%emt 0:11:48]} Bf8 {[%emt 0:02:37]} 25. Bd2 {[%emt 0:08:22]} Nxd2 {[%emt 0:01:48]} 26. Rxd2 {[%emt 0:01:42]} Re5 {[%emt 0:00:12]} 27. f4 {[%emt 0:06:03]} Rf5 {[%emt 0:00:43]} 28. Rd4 {[%emt 0:01:09]} Bc5 {[%emt 0:01:06]} 29. Ra4 {[%emt 0:01:18]} Qc7 {[%emt 0:01:24]} 30. Qc1 {[%emt 0:02:33]} b5 {[%emt 0:00:25]} 31. Rd4 {[%emt 0:01:06]} Qb6 {[%emt 0:05:57]} 32. Rd3 {[%emt 0:00:55]} Bd6 {[%emt 0:01:45]} 33. Qe3 {[%emt 0:05:15]} Qb7 {[%emt 0:00:58]} 34. Rfd1 {[%emt 0:01:24]} Bxf4 {[%emt 0:00:18]} 35. Qe2 {[%emt 0:01:46]} d4+ {[%emt 0:00:12]} 36. Qf3 {[%emt 0:01:40]} Qb6 {[%emt 0:00:25]} 37. Qe2 {[%emt 0:01:39]} Qf6 {[%emt 0:00:29]} 38. Rf3 {[%emt 0:01:46]} Qh4 {[%emt 0:00:15]} 39. h3 {[%emt 0:00:53]} Qh5 {[%emt 0:01:51]} 40. Qd3 {[%emt 0:01:04]} Re8 {[%emt 0:01:40]} 41. Bd5 {[%emt 0:17:45]} Qg5+ {[%emt 0:00:07]} 0-1

[Event "Caplin Hastings Masters 2023-24"]
[Site "Hastings"]
[Date "2024.01.04"]
[Round "8.25"]
[White "Rayner, Francis"]
[Black "Rami, Talab"]
[Result "0-1"]
[ECO "E63"]
[WhiteElo "2035"]
[BlackElo "1947"]
[Annotator "NA RC"]
[PlyCount "102"]
[EventDate "2023.12.18"]
[EventType "swiss"]
[EventCountry "ENG"]
[SourceTitle "playchess.com"]
[Source "ChessBase"]
[SourceQuality "1"]
[TimeControl "40/6000+30:3000+30"]

1. c4 {[%emt 0:06:31]} Nf6 {[%emt 0:00:28]} 2. Nf3 {[%emt 0:00:42]} g6 {[%emt 0:00:41]} 3. g3 {[%emt 0:01:48]} Bg7 {[%emt 0:01:36]} 4. Bg2 {[%emt 0:00:13]} O-O {[%emt 0:00:48]} 5. O-O {[%emt 0:00:14]} d6 {[%emt 0:01:27]} 6. d4 {[%emt 0:00:29]} Nc6 {[%emt 0:01:14]} 7. Nc3 {[%emt 0:05:37]} a6 {[%emt 0:02:41]} 8. Bd2 {[%emt 0:05:44]} Rb8 {[%emt 0:02:07]} 9. Rc1 {[%emt 0:02:09]} Bd7 {[%emt 0:08:23]} 10. b3 {[%emt 0:07:45]} b5 {[%emt 0:04:40]} 11. cxb5 {[%emt 0:04:22]} axb5 {[%emt 0:00:50]} 12. d5 {[%emt 0:08:01]} Nb4 {[%emt 0:09:22]} 13. Be3 {[%emt 0:10:50]} c5 {[%emt 0:08:31]} 14. dxc6 {[%emt 0:08:00]} Nxc6 {[%emt 0:01:11]} 15. Nd4 {[%emt 0:03:26]} Nxd4 {[%emt 0:02:31]} 16. Bxd4 {[%emt 0:00:27]} Qa5 {[%emt 0:02:05]} 17. Qd2 {[%emt 0:07:13]} e5 {[%emt 0:22:07]} 18. Be3 {[%emt 0:00:43]} b4 {[%emt 0:06:22]} 19. Nd5 {[%emt 0:01:26]} Nxd5 {[%emt 0:00:37]} 20. Bxd5 {[%emt 0:00:20]} Rfc8 {[%emt 0:00:57]} 21. a4 {[%emt 0:04:21]} Rc3 {[%emt 0:02:29]} 22. Bc4 {[%emt 0:02:44]} Bf8 {[%emt 0:02:51]} 23. Rfd1 {[%emt 0:07:07]} Rc8 {[%emt 0:01:33]} 24. Bh6 {[%emt 0:05:07]} Be7 {[%emt 0:04:14]} 25. Bg5 {[%emt 0:05:07]} Bxg5 {[%emt 0:09:33]} 26. Qxg5 {[%emt 0:00:07]} Rxc1 {[%emt 0:02:19]} 27. Rxc1 {[%emt 0:00:16]} d5 {[%emt 0:00:26]} 28. Bd3 {[%emt 0:06:32]} Rxc1+ {[%emt 0:03:03]} 29. Qxc1 {[%emt 0:00:01]} Kg7 {[%emt 0:01:54]} 30. Bb5 {[%emt 0:01:12]} Be6 {[%emt 0:01:04]} 31. Qc5 {[%emt 0:00:18]} h5 {[%emt 0:01:10]} 32. h4 {[%emt 0:00:54]} Kf6 {[%emt 0:01:22]} 33. Kh2 {[%emt 0:03:32]} d4 {[%emt 0:02:04]} 34. Qd6 {[%emt 0:00:23]} Qa8 {[%emt 0:01:47]} 35. Qxb4 {[%emt 0:01:03]} Qe4 {[%emt 0:00:31]} 36. Bc4 {[%emt 0:01:37]} Qf5 {[%emt 0:00:12]} 37. Kg1 {[%emt 0:00:59]} Qb1+ {[%emt 0:00:21]} 38. Kh2 {[%emt 0:00:34]} Qf1 {[%emt 0:00:12]} 39. Bxe6 {[%emt 0:01:13]} Qxf2+ {[%emt 0:00:10]} 40. Kh1 {[%emt 0:00:43]} Qf1+ {[%emt 0:00:05]} 41. Kh2 {[%emt 0:50:07]} Qxe2+ {[%emt 0:51:31]} 42. Kg1 {[%emt 0:00:31]} Kxe6 {[%emt 0:00:38]} 43. Qb6+ {[%emt 0:00:00]} Kf5 {[%emt 0:00:00]} 44. Qb7 {[%emt 0:00:00]} d3 {[%emt 0:00:00]} 45. Qxf7+ {[%emt 0:00:00]} Ke4 {[%emt 0:00:00]} 46. Qxg6+ {[%emt 0:00:00]} Ke3 {[%emt 0:00:00]} 47. Qg5+ {[%emt 0:00:00]} Kd4 {[%emt 0:00:00]} 48. Qd8+ {[%emt 0:00:00]} Kc3 {[%emt 0:00:00]} 49. Qa5+ {[%emt 0:00:00]} Kb2 {[%emt 0:00:00]} 50. Qb5 {[%emt 0:00:00]} Qe1+ {[%emt 0:00:00]} 51. Kg2 {[%emt 0:00:00]} d2 {[%emt 0:02:22]} 0-1